[Event "*** Titled Tuesday Blitz"]
[Site "Chess.com"]
[Date "2019.07.02"]
[Round "7"]
[White "ClockworkKubrick"]
[Black "ecwinslow"]
[Result "1/2-1/2"]
[WhiteElo "2108"]
[BlackElo "1972"]
[TimeControl "180+2"]
[EndTime "14:36:55 PDT"]
[Termination "Game drawn - insufficient material"]

1. e4 {[%clk 0:03:01.9]} 1... c5 {[%clk 0:02:51.2]} 2. Nf3 {[%clk 0:03:01.8]}
2... d6 {[%clk 0:02:51.2]} 3. Nc3 {[%clk 0:03:02.4]} 3... a6 {[%clk 0:02:49.2]}
4. d3 {[%clk 0:03:03.5]} 4... g6 {[%clk 0:02:49.1]} 5. Be2 {[%clk 0:03:04.7]}
5... Bg7 {[%clk 0:02:50.5]} 6. O-O {[%clk 0:03:06.3]} 6... Nc6 {[%clk 0:02:44]}
7. h3 {[%clk 0:03:07.7]} 7... Nf6 {[%clk 0:02:37.9]} 8. Nh2 {[%clk 0:03:08.4]}
8... e5 {[%clk 0:02:35.3]} 9. f4 {[%clk 0:03:09.2]} 9... exf4 {[%clk 0:02:35.6]}
10. Bxf4 {[%clk 0:03:10.1]} 10... h6 {[%clk 0:02:34.5]} 11. Qd2 {[%clk
0:03:11.2]} 11... Nd4 {[%clk 0:02:32.1]} 12. Rae1 {[%clk 0:03:10.4]} 12... Be6
{[%clk 0:02:25.5]} 13. Bd1 {[%clk 0:03:10.1]} 13... Nh5 {[%clk 0:02:16.2]} 14.
Be3 {[%clk 0:02:59.4]} 14... Qh4 {[%clk 0:02:06]} 15. Bxh5 {[%clk 0:02:44]}
15... Qxh5 {[%clk 0:02:02.3]} 16. Nd5 {[%clk 0:02:41.8]} 16... Bxd5 {[%clk
0:01:58]} 17. exd5 {[%clk 0:02:37.5]} 17... O-O {[%clk 0:01:57]} 18. Ng4 {[%clk
0:02:34.7]} 18... Nf5 {[%clk 0:01:47.5]} 19. Bf4 {[%clk 0:01:46.9]} 19... Rad8
{[%clk 0:01:42]} 20. c3 {[%clk 0:01:40.6]} 20... Kh7 {[%clk 0:01:30.1]} 21. Kh2
{[%clk 0:01:38.1]} 21... g5 {[%clk 0:01:16.4]} 22. Bxg5 {[%clk 0:01:17.9]} 22...
Qxg5 {[%clk 0:01:17.1]} 23. Qxg5 {[%clk 0:01:18.7]} 23... hxg5 {[%clk
0:01:18.2]} 24. Rxf5 {[%clk 0:01:19.5]} 24... Kg6 {[%clk 0:01:19.4]} 25. Rf2
{[%clk 0:01:12.1]} 25... f5 {[%clk 0:01:03.8]} 26. Ne3 {[%clk 0:01:12.2]} 26...
Be5+ {[%clk 0:00:59.1]} 27. g3 {[%clk 0:01:06.9]} 27... f4 {[%clk 0:00:53.2]}
28. gxf4 {[%clk 0:01:08.2]} 28... Bxf4+ {[%clk 0:00:51.4]} 29. Kg2 {[%clk
0:01:09]} 29... Rde8 {[%clk 0:00:46.6]} 30. Nc2 {[%clk 0:01:09.7]} 30... Rxe1
{[%clk 0:00:43.8]} 31. Nxe1 {[%clk 0:01:10.6]} 31... Re8 {[%clk 0:00:44.9]} 32.
Nf3 {[%clk 0:01:03.6]} 32... b5 {[%clk 0:00:40.6]} 33. Kf1 {[%clk 0:00:53.5]}
33... Re3 {[%clk 0:00:39.5]} 34. d4 {[%clk 0:00:52.7]} 34... cxd4 {[%clk
0:00:31.6]} 35. h4 {[%clk 0:00:47.9]} 35... g4 {[%clk 0:00:22.9]} 36. Nxd4
{[%clk 0:00:47.9]} 36... Bg3 {[%clk 0:00:23]} 37. Re2 {[%clk 0:00:44.9]} 37...
Rxe2 {[%clk 0:00:23.5]} 38. Kxe2 {[%clk 0:00:46.1]} 38... Bxh4 {[%clk 0:00:25]}
39. Ne6 {[%clk 0:00:38.3]} 39... Kf5 {[%clk 0:00:22.4]} 40. Nc7 {[%clk
0:00:38.7]} 40... Ke5 {[%clk 0:00:21.2]} 41. b3 {[%clk 0:00:38.2]} 41... Bd8
{[%clk 0:00:20.3]} 42. Nxa6 {[%clk 0:00:35.8]} 42... Kxd5 {[%clk 0:00:21.6]} 43.
Nb4+ {[%clk 0:00:34.4]} 43... Ke4 {[%clk 0:00:22.4]} 44. Nd3 {[%clk 0:00:34.5]}
44... Bb6 {[%clk 0:00:21]} 45. a4 {[%clk 0:00:34.5]} 45... bxa4 {[%clk
0:00:21.3]} 46. bxa4 {[%clk 0:00:36.4]} 46... g3 {[%clk 0:00:22.5]} 47. Ne1
{[%clk 0:00:36.7]} 47... Kd5 {[%clk 0:00:21.4]} 48. Kd3 {[%clk 0:00:36.7]} 48...
Kc5 {[%clk 0:00:22.1]} 49. Ng2 {[%clk 0:00:35.1]} 49... Ba5 {[%clk 0:00:22.4]}
50. Nf4 {[%clk 0:00:33.9]} 50... d5 {[%clk 0:00:23.1]} 51. Ng2 {[%clk
0:00:34.4]} 51... Bd8 {[%clk 0:00:20.1]} 52. Nf4 {[%clk 0:00:34.4]} 52... Bf6
{[%clk 0:00:20.2]} 53. a5 {[%clk 0:00:32.7]} 53... Kb5 {[%clk 0:00:21]} 54. Nxd5
{[%clk 0:00:33]} 54... Bxc3 {[%clk 0:00:20.6]} 55. Nxc3+ {[%clk 0:00:33]} 55...
Kxa5 {[%clk 0:00:21.6]} 56. Ke2 {[%clk 0:00:34]} 56... Kb4 {[%clk 0:00:21.6]}
57. Kf3 {[%clk 0:00:35.2]} 57... g2 {[%clk 0:00:23]} 58. Kxg2 {[%clk 0:00:36.2]}
1/2-1/2

[Event "*** Titled Tuesday Blitz"]
[Site "Chess.com"]
[Date "2019.07.02"]
[Round "7"]
[White "MateSchmate"]
[Black "M1711"]
[Result "0-1"]
[WhiteElo "2365"]
[BlackElo "2502"]
[TimeControl "180+2"]
[EndTime "14:36:56 PDT"]
[Termination "M1711 won by checkmate"]

1. e4 {[%clk 0:03:01.9]} 1... c5 {[%clk 0:03:00.1]} 2. Nf3 {[%clk 0:02:58.1]}
2... e6 {[%clk 0:02:59.9]} 3. d4 {[%clk 0:02:58.8]} 3... cxd4 {[%clk 0:03:01.8]}
4. Nxd4 {[%clk 0:02:59.1]} 4... Nc6 {[%clk 0:03:03.1]} 5. c4 {[%clk 0:02:59.1]}
5... Nf6 {[%clk 0:03:02.2]} 6. Nc3 {[%clk 0:02:59.1]} 6... Bb4 {[%clk
0:03:02.7]} 7. Nxc6 {[%clk 0:02:59.7]} 7... bxc6 {[%clk 0:03:02.5]} 8. Bd3
{[%clk 0:03:00.3]} 8... e5 {[%clk 0:03:03.4]} 9. O-O {[%clk 0:02:59.8]} 9... O-O
{[%clk 0:03:04]} 10. Be3 {[%clk 0:02:51.4]} 10... d6 {[%clk 0:03:02.8]} 11. f3
{[%clk 0:02:36.9]} 11... Be6 {[%clk 0:03:01.8]} 12. Qc2 {[%clk 0:02:04.8]} 12...
h6 {[%clk 0:02:57.6]} 13. Rfd1 {[%clk 0:02:02.5]} 13... Qe7 {[%clk 0:02:53.9]}
14. a3 {[%clk 0:01:55.5]} 14... Ba5 {[%clk 0:02:53.2]} 15. Na4 {[%clk
0:01:54.7]} 15... Rfd8 {[%clk 0:02:48.8]} 16. b4 {[%clk 0:01:54.2]} 16... Bc7
{[%clk 0:02:48.9]} 17. Nc3 {[%clk 0:01:49.6]} 17... Rac8 {[%clk 0:02:44.9]} 18.
Bxa7 {[%clk 0:01:44]} 18... d5 {[%clk 0:02:41.4]} 19. Bc5 {[%clk 0:01:35.3]}
19... Bd6 {[%clk 0:02:28.9]} 20. Bxd6 {[%clk 0:01:36.4]} 20... Qxd6 {[%clk
0:02:30.8]} 21. c5 {[%clk 0:01:37]} 21... Qe7 {[%clk 0:02:22.3]} 22. exd5 {[%clk
0:01:38.2]} 22... cxd5 {[%clk 0:02:21.4]} 23. Qf2 {[%clk 0:01:22.3]} 23... d4
{[%clk 0:01:49.3]} 24. Ne4 {[%clk 0:01:16.8]} 24... Nd5 {[%clk 0:01:41.1]} 25.
Ba6 {[%clk 0:00:39.6]} 25... Ra8 {[%clk 0:01:33.6]} 26. b5 {[%clk 0:00:26.1]}
26... f5 {[%clk 0:01:29.2]} 27. Nd6 {[%clk 0:00:27.3]} 27... Nc3 {[%clk
0:01:24.1]} 28. Rdc1 {[%clk 0:00:25.4]} 28... Rxd6 {[%clk 0:01:18.7]} 29. cxd6
{[%clk 0:00:25.7]} 29... Qxd6 {[%clk 0:01:20.6]} 30. Qd2 {[%clk 0:00:17.1]}
30... Qb6 {[%clk 0:01:12.7]} 31. a4 {[%clk 0:00:13.5]} 31... e4 {[%clk
0:01:11.3]} 32. Rxc3 {[%clk 0:00:10.8]} 32... dxc3+ {[%clk 0:01:11.5]} 33. Qf2
{[%clk 0:00:12.4]} 33... e3 {[%clk 0:01:03.3]} 34. Qe2 {[%clk 0:00:13.5]} 34...
Qc5 {[%clk 0:00:55.1]} 35. Rc1 {[%clk 0:00:09.8]} 35... Rd8 {[%clk 0:00:51]} 36.
b6 {[%clk 0:00:05.4]} 36... Rd2 {[%clk 0:00:33.9]} 37. b7 {[%clk 0:00:03.1]}
37... Qb6 {[%clk 0:00:34.3]} 38. Rxc3 {[%clk 0:00:03.4]} 38... Rxe2 {[%clk
0:00:18.1]} 39. Rc8+ {[%clk 0:00:03.4]} 39... Kh7 {[%clk 0:00:12.7]} 40. b8=Q
{[%clk 0:00:04.3]} 40... Qxa6 {[%clk 0:00:07.5]} 41. Rh8+ {[%clk 0:00:04.5]}
41... Kg6 {[%clk 0:00:08.5]} 42. Qg3+ {[%clk 0:00:04.6]} 42... Kf7 {[%clk
0:00:06.5]} 43. Qc7+ {[%clk 0:00:04]} 43... Kf6 {[%clk 0:00:06.6]} 44. Qd8+
{[%clk 0:00:04.6]} 44... Kg6 {[%clk 0:00:05.3]} 45. Qe8+ {[%clk 0:00:05.9]}
45... Bf7 {[%clk 0:00:05.5]} 46. Rxh6+ {[%clk 0:00:07.5]} 46... gxh6 {[%clk
0:00:06.1]} 47. Qe5 {[%clk 0:00:07]} 47... Re1# {[%clk 0:00:06.7]} 0-1

[Event "*** Titled Tuesday Blitz"]
[Site "Chess.com"]
[Date "2019.07.02"]
[Round "7"]
[White "CookiesAndIceCream"]
[Black "irregularity"]
[Result "0-1"]
[WhiteElo "2359"]
[BlackElo "2535"]
[TimeControl "180+2"]
[EndTime "14:36:57 PDT"]
[Termination "irregularity won by resignation"]

1. e4 {[%clk 0:03:01.9]} 1... d6 {[%clk 0:03:00.3]} 2. d4 {[%clk 0:03:02.3]}
2... Nf6 {[%clk 0:03:02.2]} 3. Nc3 {[%clk 0:03:02.8]} 3... g6 {[%clk 0:03:03.7]}
4. Nf3 {[%clk 0:03:04]} 4... Bg7 {[%clk 0:03:05.3]} 5. Be2 {[%clk 0:03:05.6]}
5... O-O {[%clk 0:03:06.9]} 6. O-O {[%clk 0:03:07.1]} 6... Bg4 {[%clk
0:03:08.4]} 7. Ng5 {[%clk 0:03:05.1]} 7... Bxe2 {[%clk 0:03:00.9]} 8. Qxe2
{[%clk 0:03:07]} 8... Nc6 {[%clk 0:02:52.1]} 9. Rd1 {[%clk 0:03:03.6]} 9... e5
{[%clk 0:02:52.9]} 10. dxe5 {[%clk 0:03:03.8]} 10... Nxe5 {[%clk 0:02:53.6]} 11.
f4 {[%clk 0:03:05.3]} 11... Nc6 {[%clk 0:02:53.7]} 12. e5 {[%clk 0:03:06.1]}
12... Nd7 {[%clk 0:02:49]} 13. e6 {[%clk 0:03:02.7]} 13... Nd4 {[%clk
0:02:39.5]} 14. exf7+ {[%clk 0:02:57.9]} 14... Kh8 {[%clk 0:02:34.2]} 15. Qf2
{[%clk 0:02:46.2]} 15... h6 {[%clk 0:02:34.9]} 16. Be3 {[%clk 0:02:02.7]} 16...
hxg5 {[%clk 0:01:17.4]} 17. Bxd4 {[%clk 0:02:01.6]} 17... Rxf7 {[%clk 0:01:19]}
18. Bxg7+ {[%clk 0:01:39.9]} 18... Kxg7 {[%clk 0:01:20.9]} 19. Qd4+ {[%clk
0:01:35.2]} 19... Kg8 {[%clk 0:01:22.5]} 20. Nd5 {[%clk 0:01:17.2]} 20... c6
{[%clk 0:01:11.3]} 21. Nc3 {[%clk 0:00:57.8]} 21... d5 {[%clk 0:01:12.1]} 22.
Rf1 {[%clk 0:00:54.4]} 22... gxf4 {[%clk 0:01:08.6]} 23. Rxf4 {[%clk 0:00:48.2]}
23... Rxf4 {[%clk 0:01:08.8]} 24. Qxf4 {[%clk 0:00:50.1]} 24... Qb6+ {[%clk
0:01:09.7]} 25. Qf2 {[%clk 0:00:33.2]} 25... Qxb2 {[%clk 0:01:11.6]} 26. Rf1
{[%clk 0:00:33.7]} 26... Rf8 {[%clk 0:01:08.4]} 27. Qd4 {[%clk 0:00:31.1]} 27...
Rxf1+ {[%clk 0:00:51.6]} 28. Kxf1 {[%clk 0:00:33]} 28... Qxc2 {[%clk 0:00:52.4]}
29. Ne2 {[%clk 0:00:31]} 29... Qb1+ {[%clk 0:00:47.1]} 30. Kf2 {[%clk
0:00:22.8]} 30... Qb6 {[%clk 0:00:45]} 31. Ke3 {[%clk 0:00:23.7]} 31... Kf7
{[%clk 0:00:38.4]} 32. h4 {[%clk 0:00:18.4]} 32... Nf6 {[%clk 0:00:27.3]} 33.
Qxb6 {[%clk 0:00:15.5]} 33... axb6 {[%clk 0:00:29.2]} 34. Kf4 {[%clk 0:00:15.6]}
34... Ne4 {[%clk 0:00:29.5]} 35. g4 {[%clk 0:00:15.9]} 35... b5 {[%clk
0:00:30.3]} 36. Ke5 {[%clk 0:00:16.5]} 36... b4 {[%clk 0:00:31.3]} 37. h5 {[%clk
0:00:15.6]} 37... gxh5 {[%clk 0:00:32]} 38. gxh5 {[%clk 0:00:17.5]} 38... Nc3
{[%clk 0:00:32.1]} 39. Nf4 {[%clk 0:00:14.6]} 39... Nxa2 {[%clk 0:00:33.3]} 40.
Ne6 {[%clk 0:00:15.5]} 40... b3 {[%clk 0:00:32.8]} 41. h6 {[%clk 0:00:07]} 41...
Kg6 {[%clk 0:00:29.2]} 42. Nf4+ {[%clk 0:00:03.1]} 42... Kxh6 {[%clk 0:00:30.2]}
43. Nd3 {[%clk 0:00:05]} 43... Nb4 {[%clk 0:00:22.1]} 44. Nb2 {[%clk 0:00:05.3]}
44... Kg5 {[%clk 0:00:23.2]} 45. Kd4 {[%clk 0:00:06.4]} 45... Kf4 {[%clk
0:00:22.9]} 46. Kc3 {[%clk 0:00:07.4]} 46... c5 {[%clk 0:00:24.3]} 47. Kxb3
{[%clk 0:00:08.4]} 47... Ke4 {[%clk 0:00:25]} 48. Kc3 {[%clk 0:00:09.4]} 48...
b5 {[%clk 0:00:24.8]} 49. Nd1 {[%clk 0:00:10.1]} 49... d4+ {[%clk 0:00:25.7]}
50. Kd2 {[%clk 0:00:11.6]} 50... Nd5 {[%clk 0:00:26.5]} 51. Nf2+ {[%clk
0:00:13.2]} 51... Kf3 {[%clk 0:00:27.1]} 52. Nd3 {[%clk 0:00:15.1]} 52... c4
{[%clk 0:00:27.8]} 53. Ne5+ {[%clk 0:00:16.7]} 53... Ke4 {[%clk 0:00:28.8]} 54.
Nc6 {[%clk 0:00:17.8]} 54... c3+ {[%clk 0:00:29.8]} 55. Kc2 {[%clk 0:00:18.1]}
55... Ne3+ {[%clk 0:00:31.3]} 56. Kc1 {[%clk 0:00:18.1]} 56... d3 {[%clk
0:00:32.2]} 0-1

[Event "*** Titled Tuesday Blitz"]
[Site "Chess.com"]
[Date "2019.07.02"]
[Round "7"]
[White "pandamaster3000"]
[Black "GeorgeTen"]
[Result "1-0"]
[WhiteElo "2287"]
[BlackElo "2224"]
[TimeControl "180+2"]
[EndTime "14:37:05 PDT"]
[Termination "pandamaster3000 won by resignation"]

1. e4 {[%clk 0:03:01.9]} 1... c6 {[%clk 0:03:00.3]} 2. d4 {[%clk 0:03:02.7]}
2... d5 {[%clk 0:03:01.8]} 3. Nc3 {[%clk 0:03:04.2]} 3... dxe4 {[%clk
0:03:01.7]} 4. Nxe4 {[%clk 0:03:06.1]} 4... Bf5 {[%clk 0:03:02]} 5. Ng3 {[%clk
0:03:07.4]} 5... Bg6 {[%clk 0:03:03.4]} 6. Nh3 {[%clk 0:03:08.9]} 6... e6 {[%clk
0:03:03.6]} 7. Nf4 {[%clk 0:03:09.4]} 7... Bd6 {[%clk 0:03:04.9]} 8. c3 {[%clk
0:03:10.4]} 8... Nf6 {[%clk 0:03:02.1]} 9. Bc4 {[%clk 0:03:02.9]} 9... Qc7
{[%clk 0:03:01.5]} 10. Qf3 {[%clk 0:02:58.2]} 10... Nbd7 {[%clk 0:02:58.6]} 11.
Bxe6 {[%clk 0:02:32.1]} 11... fxe6 {[%clk 0:02:54.3]} 12. Nxe6 {[%clk 0:02:34]}
12... Qa5 {[%clk 0:02:53.8]} 13. Nxg7+ {[%clk 0:02:33.8]} 13... Kf7 {[%clk
0:02:54.8]} 14. N7f5 {[%clk 0:02:32.5]} 14... Rae8+ {[%clk 0:02:55.8]} 15. Be3
{[%clk 0:02:32.8]} 15... Bxg3 {[%clk 0:02:51.1]} 16. Nh6+ {[%clk 0:02:24.5]}
16... Kg7 {[%clk 0:02:45.4]} 17. hxg3 {[%clk 0:02:17.3]} 17... Rhf8 {[%clk
0:02:39.1]} 18. O-O {[%clk 0:01:59.3]} 18... Nd5 {[%clk 0:02:30.7]} 19. Qg4
{[%clk 0:01:44.1]} 19... N7f6 {[%clk 0:02:31.8]} 20. Nf5+ {[%clk 0:01:32.5]}
20... Kh8 {[%clk 0:02:33.1]} 21. Qh3 {[%clk 0:01:30.6]} 21... Nxc3 {[%clk
0:02:02.3]} 22. Nh4 {[%clk 0:01:23.6]} 22... Ne2+ {[%clk 0:01:33.8]} 23. Kh1
{[%clk 0:01:24.4]} 23... Qh5 {[%clk 0:01:32.2]} 24. Rfe1 {[%clk 0:01:18.1]}
24... Ng4 {[%clk 0:00:50.1]} 25. Nxg6+ {[%clk 0:01:15.1]} 25... Qxg6 {[%clk
0:00:49.8]} 26. Rxe2 {[%clk 0:01:13.2]} 26... Rxe3 {[%clk 0:00:24.5]} 27. fxe3
{[%clk 0:01:12.6]} 27... Nf2+ {[%clk 0:00:26.2]} 28. Rxf2 {[%clk 0:01:12.8]}
28... Rxf2 {[%clk 0:00:27.9]} 29. Qc8+ {[%clk 0:01:05.4]} 29... Kg7 {[%clk
0:00:29.5]} 30. Qc7+ {[%clk 0:01:04.2]} 30... Rf7 {[%clk 0:00:31]} 31. Qe5+
{[%clk 0:01:05.5]} 31... Kg8 {[%clk 0:00:30.8]} 32. Qe8+ {[%clk 0:01:05.3]}
32... Kg7 {[%clk 0:00:31.2]} 33. Qe5+ {[%clk 0:01:06.8]} 33... Kg8 {[%clk
0:00:32.2]} 34. Rc1 {[%clk 0:01:00.9]} 34... Qh6+ {[%clk 0:00:16.8]} 35. Kg1
{[%clk 0:01:01.8]} 35... Qf6 {[%clk 0:00:18.4]} 36. Qxf6 {[%clk 0:01:02.8]}
36... Rxf6 {[%clk 0:00:19.4]} 37. Rf1 {[%clk 0:01:04.4]} 37... Re6 {[%clk
0:00:20.1]} 38. Rf3 {[%clk 0:01:02.9]} 38... Kg7 {[%clk 0:00:19.1]} 39. Kf2
{[%clk 0:01:04.4]} 39... Kg6 {[%clk 0:00:19.9]} 40. Rf4 {[%clk 0:01:04.5]} 40...
Kg5 {[%clk 0:00:20.5]} 41. Kf3 {[%clk 0:01:03.9]} 41... h5 {[%clk 0:00:22]} 42.
Re4 {[%clk 0:01:05.1]} 42... Rf6+ {[%clk 0:00:22.6]} 43. Ke2 {[%clk 0:01:04.5]}
43... b6 {[%clk 0:00:20.1]} 44. a4 {[%clk 0:01:03.9]} 44... a5 {[%clk
0:00:21.3]} 45. Re5+ {[%clk 0:01:01.7]} 45... Kg4 {[%clk 0:00:21.2]} 46. d5
{[%clk 0:01:02]} 46... cxd5 {[%clk 0:00:21.4]} 47. Rxd5 {[%clk 0:01:03.9]} 47...
Kxg3 {[%clk 0:00:22.1]} 48. Rxh5 {[%clk 0:01:05]} 48... Kxg2 {[%clk 0:00:23.1]}
49. Rg5+ {[%clk 0:01:06.2]} 49... Kh3 {[%clk 0:00:23.8]} 50. e4 {[%clk
0:01:06.2]} 50... Kh4 {[%clk 0:00:24.3]} 51. Rg1 {[%clk 0:01:06.5]} 51... Rc6
{[%clk 0:00:19.7]} 52. Kd3 {[%clk 0:01:07.2]} 52... Rd6+ {[%clk 0:00:20.2]} 53.
Kc4 {[%clk 0:01:07.9]} 53... Rd2 {[%clk 0:00:21.7]} 54. b3 {[%clk 0:01:07.6]}
54... Re2 {[%clk 0:00:22]} 55. Kd5 {[%clk 0:01:08.5]} 55... Rd2+ {[%clk
0:00:22.6]} 56. Kc6 {[%clk 0:01:08.8]} 56... Rb2 {[%clk 0:00:22.3]} 57. e5
{[%clk 0:01:09]} 57... Rxb3 {[%clk 0:00:23]} 58. e6 {[%clk 0:01:10.1]} 58... Re3
{[%clk 0:00:23.8]} 59. Kd7 {[%clk 0:01:10.5]} 59... Rd3+ {[%clk 0:00:24.2]} 60.
Ke8 {[%clk 0:01:11.4]} 60... Rd4 {[%clk 0:00:22.1]} 61. e7 {[%clk 0:01:08.7]}
61... Rxa4 {[%clk 0:00:23.4]} 62. Kf8 {[%clk 0:01:03.5]} 62... Re4 {[%clk
0:00:24.6]} 63. e8=Q {[%clk 0:01:03.7]} 63... Rxe8+ {[%clk 0:00:22.5]} 64. Kxe8
{[%clk 0:01:05.6]} 64... a4 {[%clk 0:00:23.3]} 65. Kd7 {[%clk 0:01:06.4]} 65...
a3 {[%clk 0:00:23.9]} 66. Kc6 {[%clk 0:01:07.5]} 1-0

[Event "*** Titled Tuesday Blitz"]
[Site "Chess.com"]
[Date "2019.07.02"]
[Round "7"]
[White "telarubo96"]
[Black "marianokar"]
[Result "0-1"]
[WhiteElo "2316"]
[BlackElo "2455"]
[TimeControl "180+2"]
[EndTime "14:37:11 PDT"]
[Termination "marianokar won by resignation"]

1. e4 {[%clk 0:03:01.9]} 1... c5 {[%clk 0:02:58.7]} 2. Nf3 {[%clk 0:03:02.9]}
2... d6 {[%clk 0:02:58]} 3. Bb5+ {[%clk 0:03:03.2]} 3... Nd7 {[%clk 0:02:56.5]}
4. d4 {[%clk 0:03:03.2]} 4... cxd4 {[%clk 0:02:56.2]} 5. Qxd4 {[%clk 0:03:05.1]}
5... a6 {[%clk 0:02:53.3]} 6. Bxd7+ {[%clk 0:03:05.4]} 6... Bxd7 {[%clk
0:02:54.8]} 7. Nc3 {[%clk 0:03:04.6]} 7... e5 {[%clk 0:02:50.5]} 8. Qd3 {[%clk
0:03:05.5]} 8... h6 {[%clk 0:02:51.7]} 9. O-O {[%clk 0:03:04.6]} 9... Nf6 {[%clk
0:02:47.1]} 10. Be3 {[%clk 0:03:04.7]} 10... Rc8 {[%clk 0:02:41.3]} 11. a4
{[%clk 0:03:02.8]} 11... Be7 {[%clk 0:02:37.2]} 12. a5 {[%clk 0:03:02.7]} 12...
Be6 {[%clk 0:02:32]} 13. Nd2 {[%clk 0:02:49.7]} 13... O-O {[%clk 0:02:28.7]} 14.
Rfd1 {[%clk 0:02:48.3]} 14... Qc7 {[%clk 0:02:14.2]} 15. Bb6 {[%clk 0:02:39.2]}
15... Qc6 {[%clk 0:02:14.4]} 16. Nf1 {[%clk 0:02:00]} 16... Nd7 {[%clk
0:02:11.8]} 17. Ne3 {[%clk 0:01:55.6]} 17... Nxb6 {[%clk 0:01:37.7]} 18. axb6
{[%clk 0:01:57.5]} 18... g6 {[%clk 0:01:33.9]} 19. Ned5 {[%clk 0:01:50.1]} 19...
Bd8 {[%clk 0:01:34.4]} 20. Rac1 {[%clk 0:01:01]} 20... Kg7 {[%clk 0:01:31.7]}
21. f4 {[%clk 0:00:19.6]} 21... Bxb6+ {[%clk 0:01:26]} 22. Kh1 {[%clk
0:00:18.7]} 22... exf4 {[%clk 0:00:35.8]} 23. Ne7 {[%clk 0:00:19.1]} 23... Qd7
{[%clk 0:00:19.5]} 24. Nxc8 {[%clk 0:00:21]} 24... Rxc8 {[%clk 0:00:20]} 25. Nd5
{[%clk 0:00:22.9]} 25... Ba7 {[%clk 0:00:16.6]} 26. c4 {[%clk 0:00:23.1]} 26...
Bxd5 {[%clk 0:00:14]} 27. Qxd5 {[%clk 0:00:23]} 27... Be3 {[%clk 0:00:13]} 28.
Rc2 {[%clk 0:00:22.4]} 28... Rc6 {[%clk 0:00:13.7]} 29. e5 {[%clk 0:00:22.4]}
29... Qf5 {[%clk 0:00:13.7]} 30. Re2 {[%clk 0:00:10.3]} 30... Qxe5 {[%clk
0:00:12.6]} 31. Qxe5+ {[%clk 0:00:06.4]} 31... dxe5 {[%clk 0:00:13.3]} 32. g3
{[%clk 0:00:08.3]} 32... Rxc4 {[%clk 0:00:13.6]} 33. Kg2 {[%clk 0:00:09.8]}
33... g5 {[%clk 0:00:13.8]} 34. g4 {[%clk 0:00:10.2]} 34... e4 {[%clk
0:00:14.2]} 35. Rxe3 {[%clk 0:00:06.6]} 35... fxe3 {[%clk 0:00:14.8]} 36. Rd7
{[%clk 0:00:08.5]} 36... Rc2+ {[%clk 0:00:15.1]} 37. Kg3 {[%clk 0:00:09.7]}
37... Rxb2 {[%clk 0:00:17]} 38. h4 {[%clk 0:00:11.1]} 38... gxh4+ {[%clk
0:00:17.4]} 39. Kh3 {[%clk 0:00:04.9]} 39... e2 {[%clk 0:00:17.2]} 40. g5 {[%clk
0:00:06.8]} 40... hxg5 {[%clk 0:00:17.1]} 41. Rd5 {[%clk 0:00:05.5]} 41... e1=Q
{[%clk 0:00:17.3]} 42. Rxg5+ {[%clk 0:00:07.1]} 42... Kf6 {[%clk 0:00:17.8]} 43.
Rf5+ {[%clk 0:00:08.3]} 43... Ke6 {[%clk 0:00:17.9]} 44. Rf3 {[%clk 0:00:02.1]}
44... Qh1+ {[%clk 0:00:17.8]} 45. Kg4 {[%clk 0:00:04]} 45... Qxf3+ {[%clk
0:00:19.1]} 46. Kg5 {[%clk 0:00:05.2]} 46... Rb5+ {[%clk 0:00:20.1]} 47. Kh6
{[%clk 0:00:05.9]} 47... Qf4+ {[%clk 0:00:21.3]} 48. Kg7 {[%clk 0:00:06.7]}
48... Qg5+ {[%clk 0:00:21.9]} 49. Kf8 {[%clk 0:00:08.6]} 49... Qd8+ {[%clk
0:00:22.9]} 50. Kg7 {[%clk 0:00:09.6]} 50... Rg5+ {[%clk 0:00:24.5]} 51. Kh6
{[%clk 0:00:10.2]} 51... Qf6+ {[%clk 0:00:25.6]} 0-1

[Event "*** Titled Tuesday Blitz"]
[Site "Chess.com"]
[Date "2019.07.02"]
[Round "7"]
[White "Walter_White_Poland"]
[Black "doons21"]
[Result "1-0"]
[WhiteElo "2315"]
[BlackElo "2420"]
[TimeControl "180+2"]
[EndTime "14:37:15 PDT"]
[Termination "Walter_White_Poland won by checkmate"]

1. Nf3 {[%clk 0:02:56.9]} 1... Nf6 {[%clk 0:03:01.2]} 2. c4 {[%clk 0:02:56.8]}
2... g6 {[%clk 0:03:02.6]} 3. g3 {[%clk 0:02:56.9]} 3... Bg7 {[%clk 0:03:04]} 4.
Bg2 {[%clk 0:02:58.1]} 4... O-O {[%clk 0:03:05.9]} 5. O-O {[%clk 0:02:59.1]}
5... d6 {[%clk 0:03:06.3]} 6. Nc3 {[%clk 0:02:59.9]} 6... c6 {[%clk 0:03:05]} 7.
Rb1 {[%clk 0:02:56.8]} 7... a5 {[%clk 0:03:05.3]} 8. a3 {[%clk 0:02:55.1]} 8...
e5 {[%clk 0:03:04.6]} 9. d3 {[%clk 0:02:55.6]} 9... h6 {[%clk 0:02:48.9]} 10. b4
{[%clk 0:02:55.5]} 10... axb4 {[%clk 0:02:50.8]} 11. axb4 {[%clk 0:02:56.4]}
11... Be6 {[%clk 0:02:45]} 12. Qc2 {[%clk 0:02:51.3]} 12... Qd7 {[%clk
0:02:40.1]} 13. b5 {[%clk 0:02:43.5]} 13... Bh3 {[%clk 0:02:40.8]} 14. bxc6
{[%clk 0:02:42.5]} 14... bxc6 {[%clk 0:02:41.3]} 15. Bd2 {[%clk 0:02:24.9]}
15... Bxg2 {[%clk 0:02:41.4]} 16. Kxg2 {[%clk 0:02:25.2]} 16... Re8 {[%clk
0:02:41.5]} 17. e4 {[%clk 0:02:17]} 17... d5 {[%clk 0:02:24.4]} 18. Rb6 {[%clk
0:01:57.8]} 18... d4 {[%clk 0:02:11.1]} 19. Na4 {[%clk 0:01:47.3]} 19... Qa7
{[%clk 0:02:11.8]} 20. Ra1 {[%clk 0:01:25.2]} 20... Qxb6 {[%clk 0:02:02.8]} 21.
Nxb6 {[%clk 0:01:24.8]} 21... Rxa1 {[%clk 0:02:04.7]} 22. c5 {[%clk 0:00:57.7]}
22... Nbd7 {[%clk 0:01:57.1]} 23. Nc4 {[%clk 0:00:33.2]} 23... Bf8 {[%clk
0:01:37.6]} 24. Qb2 {[%clk 0:00:32.1]} 24... Ra7 {[%clk 0:01:33.2]} 25. Nd6
{[%clk 0:00:13.6]} 25... Re6 {[%clk 0:01:16.7]} 26. Qc1 {[%clk 0:00:12]} 26...
Ra8 {[%clk 0:01:07.2]} 27. Bxh6 {[%clk 0:00:08.1]} 27... Bxd6 {[%clk 0:01:08.1]}
28. cxd6 {[%clk 0:00:08.4]} 28... Rxd6 {[%clk 0:01:10]} 29. Bg5 {[%clk
0:00:08.5]} 29... Re6 {[%clk 0:01:05.9]} 30. Qc4 {[%clk 0:00:07.4]} 30... Kg7
{[%clk 0:01:00.9]} 31. Bd2 {[%clk 0:00:06.8]} 31... Rc8 {[%clk 0:00:55.4]} 32.
Ng5 {[%clk 0:00:07.6]} 32... Re7 {[%clk 0:00:57]} 33. Bb4 {[%clk 0:00:07.6]}
33... c5 {[%clk 0:00:58.4]} 34. Ba3 {[%clk 0:00:08.2]} 34... Nh7 {[%clk
0:00:56.9]} 35. Nxh7 {[%clk 0:00:05.3]} 35... Kxh7 {[%clk 0:00:58.8]} 36. Qa6
{[%clk 0:00:05.8]} 36... Ree8 {[%clk 0:00:28.2]} 37. Qd6 {[%clk 0:00:05.7]}
37... Nf8 {[%clk 0:00:29.3]} 38. Qf6 {[%clk 0:00:05.8]} 38... Rc7 {[%clk
0:00:27.4]} 39. Qh4+ {[%clk 0:00:05]} 39... Kg7 {[%clk 0:00:28.4]} 40. Bc1
{[%clk 0:00:05.9]} 40... Ne6 {[%clk 0:00:28.6]} 41. Bh6+ {[%clk 0:00:06.4]}
41... Kg8 {[%clk 0:00:29.8]} 42. Qf6 {[%clk 0:00:07.2]} 42... c4 {[%clk
0:00:30.3]} 43. f4 {[%clk 0:00:07.3]} 43... Kh7 {[%clk 0:00:26.4]} 44. f5 {[%clk
0:00:06.7]} 44... Kxh6 {[%clk 0:00:25.8]} 45. fxe6 {[%clk 0:00:07.2]} 45... Rxe6
{[%clk 0:00:26.3]} 46. Qd8 {[%clk 0:00:07.4]} 46... Ra7 {[%clk 0:00:13.9]} 47.
Qh8+ {[%clk 0:00:07.5]} 47... Kg5 {[%clk 0:00:15.3]} 48. Qh4# {[%clk 0:00:08.6]}
1-0